{"text_format":"1","workbook":"xlsx","n_sheets":3,"sheets":["Лист1","Лист2","Лист3"],"not_rendered":{"charts":0,"images":0,"macros":1,"external_links":0,"defined_names":1,"comments":0,"pivot_tables":0},"unopened":[],"bounds":{"document_bytes":16777216,"sheet_cells":100000,"rows_first":2000,"rows_last":500,"rows_between":2000,"halvings":0,"cell_chars":16384,"cell_head_chars":4096},"cells_cut":0,"cells_raw":0,"read":"whole","date_system":"1900"}

{"sheet":"Лист1","index":0,"n_rows":94,"n_cols":3,"rows_kept":94,"cut":false,"hidden":false,"merged":[]}
[]
[]
[null,"Наименование","зач"]
[null,"Cмазка Графитная УССА 10кг",{"$f":"za_(B4)","v":true}]
[null,"Автоковрик \"AIRLINE\" ACM-LA-01 (2шт) влаговпитывающий 38*50см.",{"$f":"za_(B5)","v":false}]
[null,"Автоковрик \"AIRLINE\" ACM-LA-02 (4шт) влаговпитывающий (50*38см-2шт.+25*38см-2шт)",false]
[null,"Автоковрик \"IVF\" (1шт) влаговпитывающий (нетканый материал)",false]
[null,"Автоковрик \"IVF\" (4шт) влаговпитывающий (нетканый материал)",false]
[null,"Автоковрик \"Верона\" (1шт) влаговпитывающий 100*120см. для багажника",false]
[null,"Автоковрик \"Верона\" (1шт) влаговпитывающий 80*100см. для багажника",false]
[null,"Автоковрик \"Верона\" (2шт) влаговпитывающий 38*50см.",false]
[null,"Автоковрик \"Верона\" (2шт) СУПЕРКОВРИК влаговпитывающий 39*50см.",false]
[null,"Автопластилин \"Эффект\" (300гр)",false]
[null,"Автопластилин \"Эффект\" (500гр)",false]
[null,"Автопластилин антикор. морозоустойчивый состав (250гр)",true]
[null,"Автополотенце \"Autolux\"для салона (замша)",true]
[null,"Автополотенце \"IVF\" (45 шт)",false]
[null,"Автополотенце \"IVF\" Extra  (нетканый материал)",false]
[null,"Автополотенце \"IVF\" Extra  в листах (30шт)",true]
[null,"Автополотенце \"Turtle Wax\" хлопок (3шт)",true]
[null,"Автополотенце \"Zoom-\"Zoom\" (36*36см) для очистки МИКРОФИБРА",true]
[null,"Автополотенце \"Zoom-\"Zoom\" (45*55см) Хлопок",true]
[null,"Автополотенце \"Zoom-\"Zoom\" (50*60см) ВИСКОЗА",true]
[null,"Автоэмаль \"Mobihel\"  127 вишня (1л)",true]
[null,"Автоэмаль \"Mobihel\"  276 приз (1л)",true]
[null,"Автоэмаль металлик \"Mobihel\" 270 Нефертити (1л)",true]
[null,"Автоэмаль светло-серая 671 (0,52л) аэр.",true]
[null,"Аккумулятор    \"Vianor\" 6 СТ 55 Е залит/заряжен 480 А",true]
[null,"Аккумулятор    \"Vianor\" 6 СТ 55 залит/заряжен 480 А",true]
[null,"Аккумулятор    \"Vianor\" 6 СТ 60 Е залит/заряжен 510 А",true]
[null,"Аккумулятор    \"Vianor\" 6 СТ 60 залит/заряжен 510 А",true]
[null,"Аккумулятор    \"Vianor\" 6 СТ 75 Е залит/заряжен 630 А",true]
[null,"Аккумулятор    \"Vianor\" 6 СТ 75 залит/заряжен 630 А",true]
[null,"Аккумулятор   \"Moratti\" 100  Е (600 018 085)  Asia (обратная полярность)",false]
[null,"Аккумулятор   \"Moratti\" 100  Е (600 044 090)  900 А",true]
[null,"Аккумулятор   \"Moratti\" 100  Е (600 044 092)  920 А (обратная полярность)",false]
[null,"Аккумулятор   \"Moratti\" 100 (600 019 064)  Asia 640 А",true]
[null,"Аккумулятор   \"Moratti\" 100 (600 019 085)  Asia 850 А (прямая полярность)",false]
[null,"Аккумулятор   \"Moratti\" 45  E  (545 023/084 030) uni.клеммы высок. 300А",true]
[null,"Аккумулятор   \"Moratti\" 45  E  (545 023/084 033) uni.клеммы высок. 330 А",true]
[null,"Аккумулятор   \"Moratti\" 45 (50B24R) uni.клеммы высок. 330 А",true]
[null,"Аккумулятор   \"Moratti\" 45 (545 024/051 030) uni.клеммы высок. 300 А",true]
[null,"Аккумулятор   \"Moratti\" 45 (545 027 033) Asia 330 А (прямая полярность)",true]
[null,"Аккумулятор   \"Moratti\" 50  E  (550 023/084 033) Asia B 24 uni.кл. (аналог \"Moratti\" 45  E )",false]
[null,"Аккумулятор   \"Moratti\" 55  E  (5 550 060 042) кубик 480 А",true]
[null,"Аккумулятор   \"Moratti\" 55  E  (5 550 060 55) кубик 480 А (обратная полярность)",false]
[null,"Аккумулятор   \"Moratti\" 55  E  (555 059 055) 550 А (обратная полярность)",false]
[null,"Аккумулятор   \"Moratti\" 55  E  (555 059 065) 480 А",true]
[null,"Аккумулятор   \"Moratti\" 55 (5 550 064 055) кубик 480 А (прямая полярность)",false]
[null,"Аккумулятор   \"Moratti\" 55 (555 065 048) 480 А",true]
[null,"Аккумулятор   \"Moratti\" 55 (555 065 055) 550 А (прямая полярность)",false]
[null,"Аккумулятор   \"Moratti\" 60  Е  (560 059 057) 570 А (обратная полярность)",false]
[null,"Аккумулятор   \"Moratti\" 60  Е  (560 068 054) Asia 390 А",true]
[null,"Аккумулятор   \"Moratti\" 60 (560 065 050) 510 А",true]
[null,"Аккумулятор   \"Moratti\" 60 (560 065 057) 570 А (прямая полярность)",false]
[null,"Аккумулятор   \"Moratti\" 60 (560 069 054) Asia 540 А (снят с производства. аналог 565 069 054)",true]
[null,"Аккумулятор   \"Moratti\" 62  Е  (562 059 059) 510 А (обратная полярность)",false]
[null,"Аккумулятор   \"Moratti\" 62 (562 065 059) 510 А (прямая полярность)",false]
[null,"Аккумулятор   \"Moratti\" 65  Е  (565 068 054) Asia D23 (обратная полярность)",false]
[null,"Аккумулятор   \"Moratti\" 70  Е  (570 029 063) Аsia (снят с производства. аналог 575 029 063)",true]
[null,"Аккумулятор   \"Moratti\" 71  Е  (571 013 060) 600 А",true]
[null,"Аккумулятор   \"Moratti\" 71  Е  (571 013 068) 680 А (обратная полярность)",false]
[null,"Аккумулятор   \"Moratti\" 75  Е  (575 013 064) 640 А",true]
[null,"Аккумулятор   \"Moratti\" 75  Е  (575 013 070) 700 А (обратная полярность)",false]
[null,"Аккумулятор   \"Moratti\" 75  Е  (575 029 063) Аsia",true]
[null,"Аккумулятор   \"Moratti\" 75  Е  (575 029 063) Аsia (обратная полярность)",false]
[null,"Аккумулятор   \"Moratti\" 75 (575 014 064) 640 А",true]
[null,"Аккумулятор   \"Moratti\" 75 (575 014 070) 700 А (прямая полярность)",false]
[null,"Аккумулятор   \"Moratti\" 95 (595 018 090) 800 А (прямая полярность)",{"$f":"za_(B69)","v":false}]
[null,"Аккумулятор   \"Moratti\" 95 Е (595 017 080) 800 А",true]
[null,"Аккумулятор   \"Moratti\" 95 Е (595 017 090) 900 А (обратная полярность)",false]
[null,"Аккумулятор   12V  9 А/ч 6МТС (мото) болт",true]
[null,"Аккумулятор   12V  9 А/ч 6МТС (мото) конус",false]
[null,"Аккумулятор   12V 9 А/ч 12N9-3B \"Lights of NORD\" (мото) конус",true]
[null,"Аккумулятор   6V11 А/ч (6N11А-3/4) \"Lights of NORD\" (мото)",true]
[null,"Аккумулятор   6V14 А/ч (6N14) \"Lights of NORD\" (мото)",true]
[null,"Аккумулятор   6МТС-9 А 12V (мото) \"Forse\"",true]
[null,"Аккумулятор   6МТС-9 А 12V (мото) конус",true]
[null,"Аккумулятор   Atlas 70 Ач MF 75-630 125RC",true]
[null,"Аккумулятор  \"A-MEGA\" 55 залит/заряжен.",true]
[null,"Аккумулятор  \"Brisk\" 55 (555065042)",true]
[null,"Аккумулятор  \"Cobat Energy\" 190 1200 А",true]
[null,"Аккумулятор  \"Cobat Energy\" 55 440 А",true]
[null,"Аккумулятор  \"Cobat Energy\" 55 E 440 А",true]
[null,"Аккумулятор  \"Cobat Energy\" 60 480 А",true]
[null,"Аккумулятор  \"Cobat Energy\" 60 E 480 А",true]
[null,"Аккумулятор  \"Cobat Energy\" 62 500 А",true]
[null,"Аккумулятор  \"Cobat Energy\" 62 E 500 А",true]
[null,"Аккумулятор  \"Cobat Energy\" 75 630 А",true]
[null,"Аккумулятор  \"Cobat Energy\" 75 Е 630 А",true]
[null,"Аккумулятор  \"Cobat Energy\" 90 760 А",true]
[null,"Аккумулятор  \"Cobat Energy\" 90 E 760 А",true]
[null,"Аккумулятор  \"Doker\" 190  залит/заряжен.",true]
[null,"Аккумулятор  \"Doker\" 200  залит/заряжен.",true]

{"sheet":"Лист2","index":1,"n_rows":0,"n_cols":0,"rows_kept":0,"cut":false,"hidden":false,"merged":[]}

{"sheet":"Лист3","index":2,"n_rows":0,"n_cols":0,"rows_kept":0,"cut":false,"hidden":false,"merged":[]}